bitfinex-derivatives/quotes_ETHF0:USTF0_20210102
["timestamp","ask_amount","ask_price","bid_price","bid_amount"]
[1609556226702,0.12313641,729.86,729.73,6.01438]
[1609556227199,6.01438,729.74,729.73,6.01438]
[1609556236307,6.01438,729.74,729.72,84.9632]
[1609556239411,6.01438,729.74,729.73,6.01438]
[1609556241012,0.12312794,729.87,729.71,97.2746]
[1609556241613,0.12312794,729.87,729.75,6.01438]
[1609556241814,0.12318123,729.89,729.75,6.01438]
[1609556243615,6.01438,729.76,729.75,6.01438]
[1609556244315,0.12318123,729.89,729.75,6.01438]
[1609556245717,6.01438,729.76,729.75,6.01438]
[1609556248723,0.12318123,729.89,729.71,97.2746]
[1609556249725,0.12318123,729.89,729.76,6.01438]
[1609556250324,0.12312297,729.91,729.76,6.01438]
[1609556251724,6.01438,729.77,729.76,6.01438]
[1609556252124,0.12313923,729.92,729.76,6.01438]
[1609556252328,0.12313923,729.92,729.84,107.2809]
[1609556253126,0.04104435,729.91,729.79,3.937]
[1609556253730,0.04104435,729.91,729.9,6.01438]
[1609556253931,0.04104435,729.91,729.9,97.97628]
[1609556254331,6.13755118,729.95,729.9,97.97628]
[1609556254731,0.12317118,729.95,729.9,97.97628]
[1609556255735,6.01438,729.99,729.9,97.97628]
[1609556257738,6.01438,729.99,729.98,6.01438]
[1609556258738,0.12325176,730.03,729.98,6.01438]
[1609556259841,6.01438,729.99,729.79,3.937]
[1609556260040,6.01438,729.99,729.8,105.2852]
[1609556260242,6.01438,729.99,729.8,108.3132]
[1609556260639,15.1884,729.97,729.8,108.3132]
[1609556260840,6.01438,729.99,729.8,3.028]
[1609556261040,100.8284,729.94,729.8,3.028]
[1609556261441,100.8284,729.94,729.68,85.8476]
[1609556261743,6.01438,729.79,729.68,85.8476]
[1609556263747,6.01438,729.79,729.76,6.01438]
[1609556263945,6.01438,729.79,729.77,14.9153]
[1609556264849,6.01438,729.79,729.76,6.01438]
[1609556265251,6.01438,729.79,729.78,94.6824]
[1609556266151,6.00822586,729.79,729.78,94.6824]
[1609556269157,0.1232566,729.88,729.78,94.6824]
[1609556269854,6.01438,729.79,729.78,94.6824]
[1609556273961,0.04103967,729.89,729.78,94.6824]
[1609556274162,0.12321498,729.9,729.78,94.6824]
[1609556274561,6.01438,729.82,729.78,94.6824]
[1609556276665,0.04103705,729.89,729.78,94.6824]
[1609556276865,0.04103705,729.89,729.78,98.3414]
[1609556277266,6.01438,729.79,729.78,98.3414]
[1609556277467,6.01438,729.79,729.78,3.659]
[1609556280268,6.01438,729.79,729.78,106.4461]
[1609556281170,6.01438,729.79,729.78,3.659]
[1609556282168,6.01438,729.79,729.65,92.0913]
[1609556282467,21.01438,729.79,729.65,92.0913]
[1609556283268,6.01438,729.66,729.65,92.0913]
[1609556283468,6.01438,729.66,729.46,6.01438]
[1609556283870,6.01438,729.66,729.49,81.7292]
[1609556285470,6.01438,729.53,729.49,81.7292]
[1609556292677,6.01438,729.53,729.46,6.01438]
[1609556292880,6.01438,729.53,729.28,77.4503]
[1609556293678,6.01438,729.29,729.28,83.46468]
[1609556299488,113.762,729.54,729.28,83.46468]
[1609556299688,6.01438,729.44,729.28,9.00738]
[1609556300088,114.4627,729.32,729.28,9.00738]
[1609556301290,6.01438,729.44,729.28,9.00738]
[1609556302788,0.04098187,729.47,729.28,2.993]
[1609556303089,0.04096406,729.48,729.28,2.993]
[1609556303589,0.0409542,729.49,729.28,2.993]
[1609556303788,6.01438,729.29,729.28,2.993]
[1609556304990,6.01438,729.29,729.2,6.01438]
[1609556305390,0.0409542,729.49,729.2,6.01438]
[1609556305592,0.0409542,729.49,729.2,9.01238]
[1609556305791,6.01438,729.36,729.2,9.01238]
[1609556310497,114.53448,729.36,729.2,9.01238]
[1609556311708,108.5201,729.36,729.2,9.01238]
[1609556311898,6.01438,729.42,729.2,9.01238]
[1609556314202,0.04093469,729.45,729.2,9.01238]
[1609556314601,0.04093469,729.45,729.34,84.8611]
[1609556314801,0.04093169,729.46,729.34,84.8611]
[1609556315807,0.04093169,729.46,729.45,6.01438]
[1609556316003,6.17811876,729.51,729.45,6.01438]
[1609556316004,6.01438,729.51,729.45,6.01438]
[1609556316403,0.04097614,729.6,729.46,11.0438]
[1609556317708,0.12299133,729.63,729.46,11.0438]
[1609556320005,0.12299133,729.63,729.55,6.01438]
[1609556321407,0.0409978,729.62,729.55,6.01438]
[1609556322313,0.0409879,729.61,729.55,6.01438]
[1609556323710,0.04099141,729.62,729.55,6.01438]
[1609556325714,0.08198282,729.63,729.55,6.01438]
[1609556325715,0.04099872,729.63,729.55,6.01438]
[1609556326115,0.1230081,729.65,729.55,6.01438]
[1609556328016,0.0410065,729.64,729.55,6.01438]
[1609556328217,0.0410065,729.64,729.58,99.6221]
[1609556329817,0.0410065,729.64,729.55,6.01438]
[1609556330018,0.0410065,729.64,729.41,4.457]
[1609556330420,6.17840601,729.68,729.41,4.457]
[1609556330421,0.04101319,729.66,729.41,4.457]
[1609556330620,0.04101319,729.66,729.35,97.9765]
[1609556331420,6.01438,729.68,729.35,97.9765]
[1609556331421,0.12302983,729.65,729.35,97.9765]
[1609556332121,6.01438,729.6,729.53,6.01438]
[1609556333824,6.01438,729.6,729.54,113.2426]
[1609556334424,6.01438,729.6,729.53,6.01438]
[1609556334724,6.01438,729.6,729.59,95.7973]
[1609556340929,6.01438,729.6,729.53,6.01438]
[1609556341132,6.01438,729.6,729.46,3.886]
[1609556341331,6.01438,729.6,729.34,103.8934]
[1609556342032,6.01438,729.35,729.34,103.8934]
[1609556351439,0.04098754,729.49,729.34,103.8934]
[1609556352146,6.01438,729.35,729.34,103.8934]
[1609556356954,0.04098754,729.49,729.34,103.8934]
[1609556358153,0.04098856,729.48,729.34,103.8934]
[1609556358355,6.01438,729.35,729.34,103.8934]
[1609556358555,6.01438,729.35,729.3,6.01438]
[1609556360458,6.01438,729.35,729.2,2.998]
[1609556360857,21.01438,729.35,729.07,101.5006]
[1609556361859,6.01438,729.35,729.07,101.5006]
[1609556362360,107.0468,729.37,729.19,6.01438]
[1609556362861,15.0,729.36,729.19,6.01438]
[1609556363060,15.0,729.36,729.07,101.5006]
[1609556364262,6.01438,729.08,729.07,101.5006]
[1609556369272,0.04097796,729.3,729.07,101.5006]
[1609556369470,82.751,729.27,728.99,6.01438]
[1609556370270,6.01438,729.0,728.99,6.01438]
[1609556374377,6.01438,729.0,728.99,21.14348]
[1609556382689,6.01438,729.0,728.99,6.01438]
[1609556382888,113.74258,729.0,728.98,3.846]
[1609556384188,6.01438,729.0,728.98,3.846]
[1609556385191,6.01438,729.0,728.86,6.01438]
[1609556386393,6.01438,728.87,728.86,6.01438]
[1609556392898,109.9072,729.07,728.86,6.01438]
[1609556393298,109.9072,729.07,728.86,9.75238]
[1609556393499,109.9072,729.07,728.89,16.2496]
[1609556394499,109.9072,729.07,729.04,6.01438]
[1609556396001,6.01438,729.12,729.04,6.01438]
[1609556401608,0.0407724,729.31,729.04,6.01438]
[1609556401812,0.0407255,729.27,729.04,6.01438]
[1609556402608,6.01438,729.05,729.04,6.01438]
[1609556403408,0.04068629,729.28,729.04,6.01438]
[1609556403608,4.672,729.36,729.04,6.01438]
[1609556403609,0.04069317,729.3,729.04,6.01438]
[1609556403810,0.04069317,729.3,729.16,89.2105]
[1609556404609,6.01438,729.21,729.16,89.2105]
[1609556405208,0.04056195,729.34,729.16,89.2105]
[1609556405609,0.040563,729.4,729.16,89.2105]
[1609556406208,0.040563,729.4,729.15,6.01438]
[1609556406610,6.01438,729.39,729.31,6.01438]
[1609556408511,6.01438,729.39,729.14,6.01438]
[1609556410512,0.04063421,729.41,729.24,6.01438]
[1609556411011,4.114,729.51,729.24,6.01438]
[1609556411012,0.0406212,729.36,729.24,6.01438]
[1609556412710,6.01438,729.25,729.24,6.01438]
[1609556414917,6.01438,729.25,729.24,21.19388]
[1609556421222,0.04068257,729.42,729.24,21.19388]
[1609556421923,0.04071187,729.43,729.24,21.19388]
[1609556422622,0.04071187,729.43,729.36,17.41798]
[1609556425725,0.04071187,729.43,729.36,6.01438]
[1609556426527,0.0406963,729.45,729.36,6.01438]
[1609556426726,0.0406963,729.45,729.33,3.053]
[1609556428627,0.0406963,729.45,729.44,6.01438]
[1609556437541,0.04076506,729.55,729.44,6.01438]
[1609556438542,0.04088879,729.59,729.44,6.01438]
[1609556438741,0.04088879,729.59,729.55,6.01438]
[1609556439041,0.04088879,729.59,729.58,16.2083]
[1609556442445,6.01438,729.66,729.58,16.2083]
[1609556442446,0.04090273,729.62,729.58,16.2083]
[1609556443547,0.04090273,729.62,729.18,4.888]
[1609556443746,0.04090273,729.62,729.41,95.2087]
[1609556444152,0.04090273,729.62,729.41,99.6787]
[1609556444352,0.08180546,729.63,729.41,99.6787]
[1609556444353,0.04092519,729.63,729.41,99.6787]
[1609556444752,0.04092519,729.63,729.48,6.01438]
[1609556446756,0.04092519,729.63,729.57,6.01438]
[1609556446956,0.04092519,729.63,729.62,13.1563]
[1609556447155,0.04094811,729.66,729.62,13.1563]
[1609556448657,0.04094811,729.66,729.65,6.01438]
[1609556448954,6.09627622,729.67,729.65,6.01438]
[1609556449656,0.08189622,729.67,729.65,6.01438]
[1609556450557,0.0409869,729.72,729.65,6.01438]
[1609556451558,0.12296301,729.73,729.65,6.01438]
[1609556453257,0.04098921,729.73,729.65,6.01438]
[1609556454060,0.08197651,729.74,729.65,6.01438]
[1609556454258,0.12307551,729.72,729.65,6.01438]
[1609556454659,0.12307551,729.72,729.59,4.801]
[1609556454859,6.13745551,729.72,729.69,6.01438]
[1609556455862,6.01438,729.72,729.69,116.59428]
[1609556456764,6.17849469,729.72,729.69,116.59428]
[1609556457562,0.16412814,729.71,729.69,116.59428]
[1609556457762,0.16412814,729.71,729.69,110.5799]
[1609556460062,6.17853296,729.72,729.69,110.5799]
[1609556460864,0.16435297,729.7,729.69,110.5799]
[1609556464371,0.16432884,729.71,729.69,110.5799]
[1609556465970,6.17870083,729.72,729.69,110.5799]
[1609556468973,0.16430889,729.71,729.69,110.5799]
[1609556471077,6.01438,729.72,729.69,110.5799]
[1609556471078,0.16428951,729.7,729.69,110.5799]
[1609556472378,6.01438,729.72,729.69,110.5799]
[1609556473976,6.83427879,729.72,729.69,110.5799]
[1609556474676,6.01438,729.72,729.69,110.5799]
[1609556475477,6.83453189,729.72,729.69,110.5799]
[1609556476378,0.82103815,729.71,729.69,110.5799]
[1609556477076,6.01438,729.7,729.69,110.5799]
[1609556482482,6.42561846,729.7,729.69,110.5799]
[1609556482882,6.01438,729.7,729.69,110.5799]
[1609556484184,6.4257086,729.7,729.69,110.5799]
[1609556485686,6.01438,729.7,729.69,110.5799]
[1609556486889,6.83684156,729.7,729.69,110.5799]
[1609556488893,6.01438,729.7,729.69,110.5799]
[1609556491595,6.01438,729.7,729.59,4.801]
[1609556491796,6.01438,729.7,729.57,6.01438]
[1609556492196,6.01438,729.7,729.51,106.0067]
[1609556493498,6.01438,729.52,729.51,106.0067]
[1609556494103,0.41115487,729.72,729.51,106.0067]
[1609556494301,0.41115487,729.72,729.41,4.47]
[1609556494501,0.41115487,729.72,729.68,84.6734]
[1609556494702,96.5954,730.21,729.68,84.6734]
[1609556494703,0.41108869,729.7,729.68,84.6734]
[1609556495510,6.01438,729.69,729.68,84.6734]
[1609556496111,6.42540997,729.69,729.68,84.6734]
[1609556498014,6.01438,729.69,729.68,84.6734]
[1609556498215,0.41113659,729.71,729.68,84.6734]
[1609556499519,6.01438,729.69,729.68,84.6734]
[1609556500917,0.41113659,729.71,729.68,84.6734]
[1609556501216,0.41113659,729.71,729.54,3.519]
[1609556501616,0.41113659,729.71,729.58,6.01438]
[1609556503519,6.01438,729.59,729.58,6.01438]
[1609556504420,6.01438,729.59,729.58,22.01038]
[1609556505221,0.12342048,729.66,729.58,15.996]
[1609556505723,6.01438,729.59,729.58,22.01038]
[1609556515438,0.12356087,729.69,729.58,15.996]
[1609556515639,0.12356087,729.69,729.54,3.519]
[1609556516038,0.12356087,729.69,729.61,93.2523]
[1609556516439,0.12368501,729.7,729.61,93.2523]
[1609556517242,0.12368046,729.69,729.61,93.2523]
[1609556518141,6.01438,729.62,729.61,93.2523]
[1609556521149,5.99379252,729.62,729.61,93.2523]
[1609556521449,0.12373971,729.64,729.61,93.2523]
[1609556522047,6.01438,729.62,729.61,93.2523]
[1609556522249,0.12373971,729.64,729.61,93.2523]
[1609556523451,0.12375379,729.66,729.61,93.2523]
[1609556524052,6.01438,729.62,729.61,93.2523]
[1609556525049,0.12375379,729.66,729.61,93.2523]
[1609556525252,0.12382985,729.68,729.61,93.2523]
[1609556526252,6.01438,729.67,729.61,93.2523]
[1609556529554,0.12375835,729.7,729.61,93.2523]
[1609556529954,0.12375835,729.7,729.6,6.01438]
[1609556530353,0.12375835,729.7,729.66,88.4271]
[1609556530754,0.12366373,729.69,729.66,88.4271]
[1609556532956,0.12366373,729.69,729.6,6.01438]
[1609556532957,0.12367491,729.7,729.6,6.01438]
[1609556533357,0.12367491,729.7,729.68,82.1582]
[1609556534157,0.12375182,729.75,729.69,6.01438]
[1609556536057,0.1237643,729.77,729.69,6.01438]
[1609556536958,0.12378897,729.81,729.69,6.01438]
[1609556537859,6.13816945,729.82,729.69,6.01438]
[1609556538360,6.01438,729.82,729.81,6.01438]
[1609556538558,6.01438,729.82,729.81,17.57348]
[1609556539460,6.17950383,729.82,729.81,17.57348]
[1609556540362,6.13825486,729.82,729.81,17.57348]
[1609556543166,6.01438,729.82,729.81,17.57348]
[1609556548172,0.12386643,729.89,729.81,17.57348]
[1609556548774,0.16515563,729.9,729.81,17.57348]
[1609556548775,0.12386745,729.9,729.81,17.57348]
[1609556550074,6.01438,729.93,729.81,17.57348]
[1609556550674,0.12391293,729.97,729.92,6.01438]
[1609556552080,6.01438,730.15,729.92,6.01438]
[1609556552081,0.28919933,730.0,729.92,6.01438]
[1609556552277,0.28919933,730.0,729.97,111.5502]
[1609556553283,0.12394964,730.02,729.97,111.5502]
[1609556554186,0.28921711,730.03,729.97,111.5502]
[1609556554685,0.28921711,730.03,730.02,6.01438]
[1609556554885,0.12401683,730.04,730.02,6.01438]
[1609556555985,0.28937355,730.05,730.02,6.01438]
[1609556559190,0.28937355,730.05,730.04,88.6008]
[1609556559588,6.44128609,730.23,730.04,88.6008]
[1609556559589,0.28937293,730.07,730.04,88.6008]
[1609556560396,0.28937293,730.07,730.06,85.3238]
[1609556560598,0.28957625,730.17,730.06,85.3238]
[1609556561595,0.28951398,730.15,730.06,85.3238]
[1609556562596,0.28951398,730.15,730.14,6.01438]
[1609556562994,0.12407742,730.15,730.14,6.01438]
[1609556563795,0.28971368,730.2,730.14,6.01438]
[1609556564897,0.28970233,730.19,730.14,6.01438]
[1609556567200,3.692,730.34,730.14,6.01438]
[1609556567201,0.28967123,730.17,730.14,6.01438]
[1609556571807,0.28967618,730.18,730.14,6.01438]
[1609556575810,0.28941029,730.19,730.14,6.01438]
[1609556577012,0.12405138,730.21,730.14,6.01438]
[1609556578212,0.28949172,730.23,730.14,6.01438]
[1609556578711,0.28949172,730.23,730.22,6.01438]
[1609556578912,0.28949172,730.23,730.22,19.54818]
[1609556582616,0.41380879,730.25,730.22,19.54818]
[1609556582816,0.41380879,730.25,730.22,13.5338]
[1609556583117,0.82758849,730.24,730.22,13.5338]
[1609556586123,0.82787827,730.26,730.22,13.5338]
[1609556587424,0.4139675,730.23,730.22,13.5338]
[1609556588824,0.41416254,730.26,730.22,13.5338]
[1609556589524,0.41419508,730.25,730.2,6.01438]
[1609556589826,0.41419508,730.25,730.24,82.1242]
[1609556590827,0.29004234,730.25,730.24,82.1242]
[1609556592027,3.692,730.34,730.24,82.1242]
[1609556592028,0.29008863,730.27,730.24,82.1242]
[1609556592727,0.29010562,730.28,730.24,82.1242]
[1609556593330,0.29010562,730.28,730.27,105.8676]
[1609556595636,0.41440474,730.3,730.27,105.8676]
[1609556596837,0.41440474,730.3,730.29,6.01438]
[1609556597040,0.41445965,730.31,730.29,6.01438]
[1609556598639,0.41442984,730.3,730.29,6.01438]
[1609556600140,0.41439924,730.31,730.29,6.01438]
[1609556600847,0.41438051,730.3,730.29,6.01438]
[1609556601743,0.82873507,730.33,730.29,6.01438]
[1609556602943,0.41438508,730.3,730.29,6.01438]
[1609556605753,0.41438508,730.3,730.29,109.29528]
[1609556611361,0.41360446,730.32,730.29,109.29528]
[1609556613264,0.4133999,730.33,730.29,109.29528]
[1609556614068,0.16531831,730.3,730.29,109.29528]
[1609556615366,0.4133999,730.33,730.29,109.29528]
[1609556616770,0.28928796,730.31,730.29,109.29528]
[1609556617668,0.28927794,730.3,730.29,6.01438]
[1609556617866,0.28927794,730.3,730.12,94.5185]
[1609556618869,6.01438,730.27,730.24,6.01438]
[1609556619974,6.42768617,730.27,730.24,6.01438]
[1609556620372,6.42768617,730.27,730.25,89.0694]
[1609556621273,0.41326482,730.26,730.25,89.0694]
[1609556624483,6.42761248,730.27,730.25,89.0694]
[1609556625684,6.01438,730.27,730.25,89.0694]
[1609556633391,0.28928961,730.33,730.25,89.0694]
[1609556633793,0.12366837,730.31,730.25,89.0694]
[1609556635600,6.13806262,730.32,730.25,89.0694]
[1609556636599,6.01438,730.32,730.25,89.0694]
[1609556639303,6.13800241,730.32,730.25,89.0694]
[1609556640305,6.01438,730.32,730.25,89.0694]
[1609556651119,6.01438,730.32,730.24,6.01438]
[1609556652420,6.01438,730.32,730.24,20.75428]
[1609556671634,6.01438,730.32,730.24,6.01438]
[1609556679646,0.28962379,730.48,730.24,6.01438]
[1609556680648,0.28964273,730.49,730.24,6.01438]
[1609556681147,0.28964273,730.49,730.48,6.01438]
[1609556683153,6.30402273,730.49,730.48,6.01438]
[1609556683754,0.28958951,730.48,730.2,3.184]
[1609556683953,0.28958951,730.48,730.17,103.7615]
[1609556684754,0.28946946,730.45,730.17,103.7615]
[1609556685154,0.28946946,730.45,730.38,6.01438]
[1609556685353,0.28946946,730.45,730.38,20.06698]
[1609556685854,6.42790779,730.49,730.38,20.06698]
[1609556685855,0.28947572,730.46,730.38,20.06698]
[1609556687458,0.28942267,730.45,730.38,20.06698]
[1609556688665,6.42790779,730.49,730.38,20.06698]
[1609556688666,0.28947444,730.48,730.38,20.06698]
[1609556689863,0.28947493,730.47,730.38,20.06698]
[1609556696271,0.2894035,730.43,730.38,20.06698]
[1609556697378,6.01438,730.39,730.38,20.06698]
[1609556711701,6.01438,730.39,730.38,6.01438]
[1609556712501,19.87418,730.39,730.2,86.7148]
[1609556712905,6.01438,730.39,730.05,4.615]
[1609556713103,110.8102,730.32,729.99,81.2864]
[1609556713504,110.8102,730.32,730.15,6.01438]
[1609556713904,15.0,730.31,730.15,6.01438]
[1609556714104,15.0,730.31,730.05,4.207]
[1609556714504,101.843,730.18,730.05,4.207]
[1609556714705,15.0,730.31,730.05,4.207]
[1609556714906,103.0186,730.26,730.05,4.207]
[1609556715509,6.01438,730.06,730.05,4.207]
[1609556718909,6.01438,730.06,730.02,6.01438]
[1609556720313,6.01438,730.06,730.03,14.4045]
[1609556720613,6.01438,730.06,730.03,18.4965]
[1609556725822,6.01438,730.06,730.03,4.092]
[1609556726221,6.01438,730.06,730.03,4.385]
[1609556728626,6.01438,730.06,730.03,113.2783]
[1609556730130,6.01438,730.06,730.03,4.385]
[1609556731437,6.01438,730.06,730.02,6.01438]
[1609556732942,6.01438,730.06,730.03,88.9685]
[1609556733143,6.01438,730.06,730.03,92.6765]
[1609556740350,0.28957558,730.25,730.03,92.6765]
[1609556741652,0.28957558,730.25,730.24,6.01438]
[1609556742653,0.28955262,730.27,730.24,6.01438]
[1609556743653,0.28978775,730.38,730.24,6.01438]
[1609556743853,0.28978775,730.38,730.28,93.3996]
[1609556744655,0.28984973,730.41,730.28,93.3996]
[1609556745656,0.28984973,730.41,730.35,6.01438]
[1609556746058,0.28985705,730.42,730.35,6.01438]
[1609556747157,0.28992302,730.44,730.35,6.01438]
[1609556748159,0.28987061,730.42,730.35,6.01438]
[1609556748859,0.28989434,730.43,730.35,6.01438]
[1609556749963,6.42851477,730.46,730.35,6.01438]
[1609556749964,0.28990585,730.44,730.35,6.01438]
[1609556751767,6.30408417,730.46,730.43,6.01438]
[1609556752166,0.28970417,730.46,730.28,93.3996]
[1609556753969,6.30408417,730.46,730.45,6.01438]
[1609556756374,6.01438,730.46,730.45,6.01438]
[1609556758976,6.84273451,730.46,730.45,6.01438]
[1609556759881,6.01438,730.46,730.45,6.01438]
[1609556766992,6.84271269,730.46,730.45,6.01438]
[1609556767195,6.84271269,730.46,730.28,93.3996]
[1609556767994,6.01438,730.46,730.28,93.3996]
[1609556768394,6.01438,730.31,730.28,93.3996]
[1609556769395,0.28987823,730.38,730.28,93.3996]
[1609556770399,0.28987823,730.38,730.37,6.01438]
[1609556770898,6.01438,730.39,730.37,6.01438]
[1609556771398,6.01438,730.39,730.37,19.74998]
[1609556774003,0.28941675,730.44,730.37,6.01438]
[1609556774402,0.28941675,730.44,730.43,80.8279]
[1609556775304,0.28951547,730.5,730.43,80.8279]
[1609556776004,0.28951547,730.5,730.37,6.01438]
[1609556776407,0.28989925,730.53,730.49,6.01438]
[1609556777109,0.28989925,730.53,730.52,96.6804]
[1609556777909,0.6,730.54,730.52,96.6804]
[1609556781621,0.6,730.54,730.49,6.01438]
[1609556783423,0.6,730.54,730.5,10.9611]
[1609556786331,0.6,730.54,730.49,6.01438]
[1609556787331,0.59149074,730.54,730.49,6.01438]
[1609556820166,0.59149074,730.54,730.48,3.284]
[1609556820768,0.59149074,730.54,730.53,6.01438]
[1609556827779,0.59149074,730.54,730.53,5.99814889]
[1609556859313,0.59149074,730.54,730.53,20.99814889]
[1609556860418,0.59149074,730.54,730.53,5.99814889]
[1609556861018,0.59149074,730.54,730.53,20.99814889]
[1609556862220,0.59149074,730.54,730.53,5.99814889]
[1609556862819,0.59149074,730.54,730.53,20.99814889]
[1609556863920,0.59149074,730.54,730.53,5.99814889]
[1609556866525,0.59149074,730.54,730.53,20.99814889]
[1609556873327,0.59149074,730.54,730.53,147.93564889]
[1609556873527,0.59149074,730.54,730.53,20.99814889]
[1609556876630,0.59149074,730.54,730.53,15.0]
[1609556877231,0.59149074,730.54,730.53,112.49748]
[1609556877932,0.59149074,730.54,730.53,97.49748]
[1609556880537,0.59149074,730.54,730.53,6.01438]
[1609556885942,0.59149074,730.54,730.53,97.22048]
[1609556886443,0.59149074,730.54,730.53,6.01438]
[1609556905257,0.59149074,730.54,730.48,3.284]
[1609556905458,0.59149074,730.54,730.4,14.98640986]
[1609556905758,0.59149074,730.54,730.53,6.01438]
[1609556906359,0.59149074,730.54,730.53,10.47438]
[1609556909465,0.59149074,730.54,730.53,4.46]
[1609556909864,0.59149074,730.54,730.53,10.47438]
[1609556924084,0.59149074,730.54,730.53,4.46]
[1609556924584,0.59149074,730.54,730.49,107.0954]
[1609556924783,0.59149074,730.54,730.53,6.01438]
[1609556925595,0.59149074,730.54,730.53,9.50638]
[1609556927595,0.59149074,730.54,730.53,3.492]
[1609556928896,0.59149074,730.54,730.53,9.50638]
[1609556931000,0.59149074,730.54,730.53,3.492]
[1609556931200,0.59149074,730.54,730.53,4.646]
[1609556931501,0.59149074,730.54,730.53,10.66038]
[1609556953925,0.59149074,730.54,730.53,4.646]
[1609556954126,0.59149074,730.54,730.53,4.673]
[1609556954328,0.59149074,730.54,730.53,10.68738]
[1609556956929,0.59149074,730.54,730.53,25.67056604]
[1609556959832,0.59149074,730.54,730.53,10.68738]
[1609556962834,0.59149074,730.54,730.53,25.67072531]
[1609556963536,0.59149074,730.54,730.53,10.68738]
[1609556972647,0.59149074,730.54,730.53,25.67130627]
[1609556974652,0.59149074,730.54,730.53,19.65692627]
[1609556975154,0.59149074,730.54,730.53,10.68738]
[1609556976053,0.59149074,730.54,730.53,25.67106468]
[1609556976953,0.59149074,730.54,730.53,10.68738]
[1609556979758,0.59149074,730.54,730.53,25.67025754]
[1609556981459,0.59149074,730.54,730.53,10.68738]
[1609557000586,0.29063997,731.19,730.53,25.68738]
[1609557000786,0.29063997,731.19,731.15,90.2413]
[1609557000986,0.29059587,731.18,731.15,90.2413]
[1609557001386,0.29059587,731.18,731.17,6.01438]
[1609557001787,1.9926574,731.34,731.17,6.01438]
[1609557001788,0.29089686,731.3,731.17,6.01438]
[1609557002188,92.552,731.29,731.17,6.01438]
[1609557002387,15.0,731.28,731.17,6.01438]
[1609557002590,101.5168,731.18,731.17,6.01438]
[1609557002790,116.5168,731.18,731.17,6.01438]
[1609557003590,116.5168,731.18,731.02,3.793]
[1609557004489,0.29114229,731.13,731.02,3.793]
[1609557005391,0.24955053,731.13,731.12,6.01438]
[1609557005589,0.83179321,731.16,731.12,6.01438]
[1609557006190,0.83179321,731.16,731.14,88.4721]
[1609557007092,0.83175406,731.15,731.14,88.4721]
[1609557007791,0.83175406,731.15,731.12,6.01438]
[1609557008393,0.29120994,731.15,731.12,6.01438]
[1609557008993,103.5118,731.14,731.12,6.01438]
[1609557009192,15.0,731.13,730.88,112.8892]
[1609557009393,15.0,731.13,731.0,6.01438]
[1609557009893,15.83159686,731.13,731.0,6.01438]
[1609557010997,0.29106231,731.09,731.0,6.01438]
[1609557011397,0.29106231,731.09,731.08,6.01438]
[1609557012197,0.7068577,731.09,731.08,6.01438]
[1609557013297,0.83177937,731.12,731.08,6.01438]
[1609557013499,6.01438,731.11,731.08,6.01438]
[1609557013698,15.0,731.1,731.08,6.01438]
[1609557017104,87.1714,731.09,731.08,6.01438]
[1609557017304,102.1714,731.09,730.87,4.469]
[1609557017504,18.801,731.09,730.98,6.01438]
[1609557017904,108.7901,730.99,730.98,6.01438]
[1609557018103,123.7901,730.99,730.98,6.01438]
[1609557019509,129.80448,730.99,730.98,6.01438]
[1609557019708,21.01438,730.99,730.98,6.01438]
[1609557020709,22.34388549,730.99,730.98,6.01438]
[1609557021511,21.01438,730.99,730.98,6.01438]
[1609557027817,22.34382567,730.99,730.98,6.01438]
[1609557028217,21.01438,730.99,730.98,6.01438]
[1609557029118,111.75488,730.99,730.73,3.62]
[1609557029318,21.01438,730.99,730.53,4.673]
[1609557029518,94.535,730.74,730.64,6.01438]
[1609557030117,15.0,730.98,730.64,6.01438]
[1609557030520,15.0,730.98,730.9,97.5145]
[1609557030719,15.0,730.97,730.9,97.5145]
[1609557030919,15.0,730.96,730.9,97.5145]